bitfinex/quotes_BTCUSD_20220115
["timestamp","ask_amount","ask_price","bid_price","bid_amount"]
[1642284307076,0.19448677,43297.0,43292.0,0.88422535]
[1642284307275,0.00093381,43297.0,43292.0,0.88422535]
[1642284307877,0.00093381,43297.0,43293.0,0.28656882]
[1642284308280,0.32,43298.0,43293.0,0.28656882]
[1642284308582,0.00093381,43297.0,43292.0,0.88422535]
[1642284308977,0.19838077,43297.0,43292.0,0.88422535]
[1642284309176,0.00093381,43297.0,43292.0,0.88422535]
[1642284309379,0.19684191,43297.0,43292.0,0.88422535]
[1642284309577,0.00093381,43297.0,43292.0,0.88422535]
[1642284309778,0.19542402,43297.0,43292.0,1.14329545]
[1642284310078,0.00093381,43297.0,43292.0,1.14329545]
[1642284310528,0.19682908,43297.0,43292.0,1.14329545]
[1642284310728,0.22,43298.0,43292.0,1.14329545]
[1642284310928,0.00093381,43297.0,43292.0,1.14329545]
[1642284311135,0.19666042,43297.0,43292.0,1.14329545]
[1642284311329,0.00093381,43297.0,43292.0,1.14083445]
[1642284311532,0.00093381,43297.0,43292.0,1.09613445]
[1642284311928,0.32,43298.0,43292.0,1.09613445]
[1642284312129,0.00093381,43297.0,43292.0,1.09613445]
[1642284312328,0.00081329,43297.0,43292.0,1.09613445]
[1642284313131,0.20004567,43297.0,43292.0,1.09613445]
[1642284313735,0.32,43298.0,43292.0,1.09613445]
[1642284314382,0.32057878,43298.0,43292.0,1.09613445]
[1642284315389,0.22,43298.0,43294.0,0.03747504]
[1642284315585,0.22057878,43298.0,43295.0,0.04166856]
[1642284315786,0.22057878,43298.0,43296.0,0.27171165]
[1642284316389,0.01977878,43298.0,43296.0,0.27171165]
[1642284316586,0.13994424,43309.0,43297.0,2.15]
[1642284316785,0.00093379,43299.0,43297.0,2.15]
[1642284317834,0.00022347,43309.0,43297.0,2.15]
[1642284318035,0.00022347,43309.0,43298.0,0.21465878]
[1642284318235,0.00020628,43308.0,43298.0,0.21465878]
[1642284318734,0.00018909,43307.0,43298.0,0.21465878]
[1642284318939,0.00018909,43307.0,43301.0,0.34439537]
[1642284319135,0.0001719,43306.0,43301.0,0.34439537]
[1642284319336,0.00057849,43305.0,43301.0,0.34439537]
[1642284319535,0.0007332,43305.0,43301.0,0.34439537]
[1642284319735,0.00013752,43304.0,43301.0,0.34439537]
[1642284319935,0.00013752,43304.0,43297.0,2.15]
[1642284320136,0.00012033,43303.0,43297.0,2.15]
[1642284320436,0.00010314,43302.0,43298.0,0.21005154]
[1642284320637,0.00010314,43302.0,43297.0,2.15]
[1642284320837,8.595e-05,43301.0,43297.0,2.15]
[1642284321037,8.595e-05,43301.0,43299.0,0.32304312]
[1642284321240,6.876e-05,43300.0,43299.0,0.32304312]
[1642284321680,6.876e-05,43300.0,43299.0,0.27834312]
[1642284321885,6.876e-05,43300.0,43299.0,1.17834312]
[1642284322484,6.876e-05,43300.0,43296.0,0.27171165]
[1642284322981,6.876e-05,43300.0,43295.0,0.3012]
[1642284323686,0.35491602,43297.0,43295.0,0.3012]
[1642284323888,0.35491602,43297.0,43293.0,0.78236554]
[1642284323889,0.00123251,43296.0,43293.0,0.78236554]
[1642284324091,0.05293251,43296.0,43293.0,0.7829108]
[1642284324284,0.05293251,43296.0,43293.0,0.00054526]
[1642284324483,0.00127346,43294.0,43293.0,0.00054526]
[1642284324681,2.10297346,43294.0,43293.0,0.00054526]
[1642284324881,2.79233565,43294.0,43293.0,0.00054526]
[1642284325084,2.92250628,43294.0,43290.0,0.78236554]
[1642284325335,0.057756,43293.0,43291.0,0.00054531]
[1642284325535,1.877446,43292.0,43291.0,0.00063126]
[1642284325736,1.877446,43292.0,43291.0,0.00054531]
[1642284325936,1.977446,43292.0,43291.0,0.00054531]
[1642284326138,1.977446,43292.0,43281.0,1.2855]
[1642284326338,0.00129693,43286.0,43281.0,1.2855]
[1642284326537,0.0517,43285.0,43283.0,0.00218174]
[1642284326741,0.0517,43285.0,43281.0,0.93862241]
[1642284326742,1.3,43284.0,43281.0,0.93862241]
[1642284326938,1.3517,43284.0,43281.0,0.93862241]
[1642284327138,0.1517,43284.0,43281.0,0.93862241]
[1642284327338,0.33005572,43282.0,43281.0,0.93862241]
[1642284327539,0.48175572,43282.0,43281.0,0.93862241]
[1642284327740,0.1517,43282.0,43279.0,0.0005297]
[1642284328140,0.375746,43281.0,43279.0,0.0005297]
[1642284328339,0.0517,43280.0,43279.0,0.0005297]
[1642284329389,0.24941531,43280.0,43279.0,0.0005297]
[1642284329585,0.0517,43280.0,43279.0,0.0005297]
[1642284329786,0.2817,43280.0,43279.0,0.0005297]
[1642284331388,0.48993156,43280.0,43279.0,0.0005297]
[1642284331587,0.6,43279.0,43270.0,0.2566753]
[1642284331790,0.0517,43279.0,43270.0,0.2566753]
[1642284331992,0.1517,43279.0,43272.0,0.04740978]
[1642284332187,0.1517,43279.0,43271.0,0.04157434]
[1642284332387,0.1517,43279.0,43274.0,0.24814741]
[1642284332687,0.1517,43279.0,43275.0,0.00012033]
[1642284333137,0.0517,43279.0,43275.0,0.00012033]
[1642284333341,0.0517,43279.0,43273.0,0.00015471]
[1642284333537,0.0517,43279.0,43275.0,0.00035018]
[1642284333938,0.0517,43279.0,43276.0,0.00010314]
[1642284334838,0.0517,43279.0,43275.0,0.00035018]
[1642284335240,0.0517,43279.0,43276.0,0.00010314]
[1642284336237,0.0517,43279.0,43275.0,0.00052512]
[1642284336439,0.0517,43279.0,43276.0,0.00010314]
[1642284336682,0.0517,43279.0,43271.0,0.04002522]
[1642284337089,0.0517,43279.0,43272.0,6.876e-05]
[1642284337885,0.0517,43279.0,43272.0,0.34248521]
[1642284338086,0.19234531,43278.0,43272.0,0.34248521]
[1642284338286,0.0517,43277.0,43272.0,0.34248521]
[1642284338486,0.0517,43277.0,43273.0,0.00035019]
[1642284339487,0.0517,43277.0,43272.0,0.34248521]
[1642284339691,0.0517,43277.0,43273.0,0.00035019]
[1642284340639,0.0517,43277.0,43271.0,8.595e-05]
[1642284340640,0.19664871,43276.0,43271.0,8.595e-05]
[1642284340839,0.19664871,43276.0,43273.0,0.00052123]
[1642284341140,0.0517,43275.0,43273.0,0.00052123]
[1642284341744,0.19773962,43274.0,43271.0,7.18e-06]
[1642284341940,0.0517,43273.0,43271.0,7.18e-06]
[1642284346694,0.0517,43273.0,43268.0,0.23293173]
[1642284346895,0.0517,43273.0,43270.0,0.0005174]
[1642284347841,0.0517,43273.0,43268.0,0.2906922]
[1642284348040,0.0517,43273.0,43269.0,0.00051741]
[1642284348442,0.41355991,43273.0,43269.0,0.00051741]
[1642284349042,0.41355991,43273.0,43268.0,0.23293173]
[1642284349242,0.0517,43273.0,43271.0,6e-05]
[1642284349542,0.0517,43273.0,43271.0,0.00012]
[1642284351694,0.0517,43273.0,43268.0,0.18856913]
[1642284352494,0.1,43276.0,43268.0,0.24632636]
[1642284352706,0.21774861,43279.0,43268.0,0.24632636]
[1642284352895,6.876e-05,43275.0,43268.0,0.24632636]
[1642284353094,0.00012033,43278.0,43268.0,0.24632636]
[1642284353294,0.3824401,43280.0,43269.0,2.15]
[1642284353496,0.3824401,43280.0,43275.0,0.31112537]
[1642284353696,0.23,43280.0,43275.0,0.31112537]
[1642284354096,0.23058773,43280.0,43275.0,0.31112537]
[1642284354898,0.23058773,43280.0,43275.0,0.36887618]
[1642284355097,0.23,43280.0,43275.0,0.36887618]
[1642284355356,0.23093395,43280.0,43275.0,0.36887618]
[1642284355751,0.23093395,43280.0,43276.0,0.2037974]
[1642284355952,0.23093395,43280.0,43275.0,0.36887618]
[1642284356352,0.23,43280.0,43275.0,0.36887618]
[1642284356651,0.23093395,43280.0,43275.0,0.36887618]
[1642284356850,0.23093395,43280.0,43275.0,0.32407618]
[1642284357451,0.23,43280.0,43275.0,0.32407618]
[1642284357653,0.23093395,43280.0,43275.0,0.32407618]
[1642284358053,0.23093395,43280.0,43272.0,0.22853372]
[1642284358453,0.23093395,43280.0,43273.0,0.00010314]
[1642284358653,0.23,43280.0,43273.0,0.00010314]
[1642284358854,0.00093396,43278.0,43273.0,0.00010314]
[1642284359088,0.00093396,43278.0,43275.0,0.29749781]
[1642284359898,0.23,43280.0,43273.0,0.00010314]
[1642284360090,0.00093396,43279.0,43273.0,0.00010314]
[1642284360990,0.23,43280.0,43273.0,0.00010314]
[1642284361190,0.00093396,43278.0,43273.0,0.00010314]
[1642284361391,0.00093396,43278.0,43274.0,0.32202588]
[1642284361791,0.00093396,43278.0,43274.0,0.27729464]
[1642284362291,0.23,43280.0,43274.0,0.27729464]
[1642284362491,0.00093396,43278.0,43274.0,0.27729464]
[1642284363236,0.00093396,43278.0,43272.0,0.22853372]
[1642284363536,0.40704884,43279.0,43272.0,0.22853372]
[1642284363737,0.00093396,43278.0,43272.0,0.22853372]
[1642284364542,0.00093396,43278.0,43272.0,0.54070446]
[1642284364740,0.40704884,43279.0,43272.0,0.22853372]
[1642284364941,0.00093397,43277.0,43272.0,0.22853372]
[1642284365940,0.40704884,43279.0,43271.0,0.03557499]
[1642284366140,0.40704884,43279.0,43270.0,0.3122]
[1642284366141,0.00093398,43277.0,43270.0,0.3122]
[1642284366584,0.00093398,43277.0,43271.0,6.876e-05]
[1642284366783,0.00093398,43277.0,43270.0,0.30638678]
[1642284366988,0.40704884,43279.0,43272.0,0.2148563]
[1642284367184,0.00101993,43276.0,43272.0,0.52326118]
[1642284367385,0.00093398,43276.0,43272.0,0.52326118]
[1642284367587,6.876e-05,43275.0,43272.0,0.52326118]
[1642284368583,6.876e-05,43275.0,43272.0,0.58101197]
[1642284369784,6.876e-05,43275.0,43273.0,0.78733651]
[1642284369983,6.876e-05,43275.0,43274.0,2.3654922]
[1642284371047,6.876e-05,43275.0,43274.0,3.15282871]
[1642284371746,6.876e-05,43275.0,43274.0,2.93733651]
[1642284371947,6.876e-05,43275.0,43274.0,2.89263651]
[1642284372949,6.876e-05,43275.0,43274.0,2.1053]
[1642284373151,6.876e-05,43275.0,43274.0,2.1003]
[1642284374989,6.876e-05,43275.0,43272.0,0.05775079]
[1642284375189,6.876e-05,43275.0,43270.0,0.30638678]
[1642284376890,6.876e-05,43275.0,43270.0,0.26168678]
[1642284378340,6.876e-05,43275.0,43270.0,1.04945997]
[1642284379743,6.876e-05,43275.0,43271.0,0.20262591]
[1642284380344,6.876e-05,43275.0,43274.0,1.69889391]
[1642284381591,6.876e-05,43275.0,43274.0,1.0866671]
[1642284381791,6.876e-05,43275.0,43274.0,1.0420671]
[1642284382191,6.876e-05,43275.0,43274.0,0.75429391]
[1642284384197,6.876e-05,43275.0,43274.0,1.15429391]
[1642284384395,6.876e-05,43275.0,43274.0,1.9320671]
[1642284385097,6.876e-05,43275.0,43274.0,1.54429391]
[1642284385858,6.876e-05,43275.0,43274.0,1.5320671]
[1642284386462,6.876e-05,43275.0,43274.0,0.74429391]
[1642284386859,6.876e-05,43275.0,43274.0,0.69959391]
[1642284387057,6.876e-05,43275.0,43274.0,1.09959391]
[1642284387457,6.876e-05,43275.0,43273.0,0.78777319]
[1642284387860,6.876e-05,43275.0,43272.0,0.84552699]
[1642284388558,6.876e-05,43275.0,43273.0,0.299889]
[1642284389796,6.876e-05,43275.0,43273.0,1.08766219]
[1642284391800,6.876e-05,43275.0,43273.0,0.78777319]
[1642284392001,6.876e-05,43275.0,43273.0,0.74307319]
[1642284392602,6.876e-05,43275.0,43270.0,0.26168678]
[1642284392843,0.26211872,43273.0,43270.0,0.26168678]
[1642284393042,0.26211872,43273.0,43268.0,0.00051357]
[1642284393441,0.26211872,43273.0,43267.0,0.9947]
[1642284393642,0.26211872,43273.0,43268.0,0.0005136]
[1642284394251,1.2,43269.0,43267.0,0.9852136]
[1642284396898,1.2,43269.0,43267.0,0.9405136]
[1642284399096,1.2,43269.0,43267.0,1.72501179]
[1642284402047,1.43,43269.0,43267.0,1.68041179]
[1642284402444,1.43,43269.0,43267.0,0.8959136]
[1642284402846,1.43,43269.0,43267.0,1.68041179]
[1642284404096,1.43,43269.0,43267.0,0.8959136]
[1642284407002,1.43,43269.0,43266.0,0.00050984]
[1642284407401,1.43,43269.0,43267.0,6.876e-05]
[1642284408348,1.43,43269.0,43266.0,0.00059579]
[1642284409147,1.43,43269.0,43266.0,8.595e-05]
[1642284411897,1.43,43269.0,43265.0,0.0137591]
[1642284412593,1.43,43269.0,43265.0,0.01324925]
[1642284412792,1.43,43269.0,43265.0,0.01375911]
[1642284413796,1.43,43269.0,43265.0,0.01324925]
[1642284413995,1.43,43269.0,43265.0,0.01375911]
[1642284415100,1.43,43269.0,43264.0,0.78449819]
[1642284415349,1.43,43269.0,43265.0,0.00050986]
[1642284416153,0.28159329,43266.0,43265.0,0.00050986]
[1642284416354,0.28159329,43266.0,43263.0,0.78449819]
[1642284416556,0.28159329,43266.0,43265.0,0.00050986]
[1642284416854,0.27527171,43266.0,43265.0,0.00050986]
[1642284417154,0.27527171,43266.0,43263.0,0.74020805]
[1642284417354,1.43,43269.0,43261.0,0.85573318]
[1642284417757,1.43,43269.0,43262.0,6.876e-05]
[1642284418855,1.43,43269.0,43263.0,0.00034508]
[1642284419696,1.53,43269.0,43263.0,0.00034508]
[1642284420195,1.43,43269.0,43263.0,0.00034508]
[1642284420504,1.43,43269.0,43264.0,0.05776163]
[1642284421499,1.43,43269.0,43264.0,0.05276163]
[1642284421897,1.43,43269.0,43264.0,0.00816163]
[1642284422597,1.43,43269.0,43263.0,0.00056947]
[1642284423550,1.43,43269.0,43262.0,6.876e-05]
[1642284423748,1.43,43269.0,43263.0,0.78519873]
[1642284424648,1.43,43269.0,43263.0,0.78462926]
[1642284424850,1.43,43269.0,43263.0,0.78519873]
[1642284425951,1.43,43269.0,43264.0,0.05776239]
[1642284426351,1.43,43269.0,43264.0,0.84239165]
[1642284426802,1.43,43269.0,43264.0,0.05776239]
[1642284427103,1.43,43269.0,43264.0,0.01306239]
[1642284427303,1.43,43269.0,43264.0,0.79769165]
[1642284427805,1.28700001,43269.0,43264.0,0.84672394]
[1642284428002,0.829,43269.0,43264.0,0.84672394]
[1642284428407,0.829,43269.0,43264.0,0.79769165]
[1642284428603,0.829,43269.0,43264.0,0.78462926]
[1642284428804,0.829,43269.0,43265.0,0.04903229]
[1642284429003,0.9807,43269.0,43265.0,0.04903229]
[1642284429506,0.9807,43269.0,43266.0,0.68743109]
[1642284430360,0.9807,43269.0,43266.0,0.73646338]
[1642284430965,0.8807,43269.0,43266.0,0.73646338]
[1642284431162,0.458,43266.0,43265.0,0.68743109]
[1642284431763,0.458,43266.0,43263.0,0.0005625]
[1642284431961,0.458,43266.0,43261.0,1.09451225]
[1642284431962,0.458,43266.0,43261.0,1.04998101]
[1642284432261,0.458,43266.0,43263.0,0.00056252]
[1642284433062,0.458,43266.0,43261.0,1.04998101]
[1642284433262,0.458,43266.0,43262.0,0.00056253]
[1642284434296,0.458,43266.0,43261.0,1.04998101]
[1642284434502,0.458,43266.0,43262.0,0.00056245]
[1642284435396,0.458,43266.0,43261.0,1.04998101]
[1642284435598,0.458,43266.0,43262.0,0.78519171]
[1642284436197,0.458,43266.0,43262.0,0.00056245]
[1642284436597,0.458,43266.0,43261.0,1.04998101]
[1642284436799,0.458,43266.0,43262.0,0.00056245]
[1642284436999,0.18133565,43265.0,43261.0,1.00594346]
[1642284437198,0.458,43266.0,43261.0,1.00594346]
[1642284437900,0.458,43266.0,43261.0,1.06370999]
[1642284438299,0.458,43266.0,43261.0,1.05870999]
[1642284438798,0.458,43266.0,43262.0,0.78462926]
[1642284439199,0.458,43266.0,43262.0,0.97756664]
[1642284439399,0.458,43266.0,43263.0,0.1944804]
[1642284439599,0.458,43266.0,43262.0,0.78462926]
[1642284439800,0.458,43266.0,43262.0,0.84238726]
[1642284440500,0.458,43266.0,43265.0,1.63462926]
[1642284440700,0.458,43266.0,43265.0,1.67992939]
[1642284440899,0.45806876,43266.0,43265.0,1.63462926]
[1642284442099,0.45806876,43266.0,43265.0,0.85]
[1642284442301,0.14754038,43266.0,43265.0,2.15]
[1642284442500,6.876e-05,43266.0,43265.0,2.15]
[1642284444504,6.876e-05,43266.0,43265.0,1.35]
[1642284444906,6.876e-05,43266.0,43265.0,0.85]
[1642284445553,6.876e-05,43266.0,43265.0,1.3]
[1642284446353,6.876e-05,43266.0,43265.0,0.85]
[1642284447050,6.876e-05,43266.0,43265.0,0.8049]
[1642284447349,6.876e-05,43266.0,43265.0,1.36936214]
[1642284448953,6.876e-05,43266.0,43265.0,0.86936214]
[1642284450511,6.876e-05,43266.0,43265.0,1.41936214]
[1642284451108,6.876e-05,43266.0,43265.0,1.45989103]
[1642284451307,6.876e-05,43266.0,43265.0,1.41936214]
[1642284452207,6.876e-05,43266.0,43265.0,1.37426214]
[1642284453450,8.76e-06,43266.0,43265.0,0.82426214]
[1642284453852,0.00088851,43268.0,43265.0,0.82426214]
[1642284454653,0.00088851,43268.0,43266.0,0.8503343]
[1642284454851,0.829,43269.0,43266.0,0.8503343]
[1642284454852,0.82988942,43269.0,43266.0,0.8503343]
[1642284455254,0.82988942,43269.0,43268.0,1.58485594]
[1642284455453,0.82988942,43269.0,43268.0,0.33485594]
[1642284455653,0.82988942,43269.0,43267.0,0.07221915]
[1642284455853,0.829,43269.0,43267.0,0.07221915]
[1642284456054,0.829,43269.0,43268.0,0.51446214]
[1642284457001,0.829,43269.0,43268.0,0.06446214]
[1642284457206,0.829,43269.0,43268.0,0.01946214]
[1642284458301,0.824,43269.0,43268.0,0.01946214]
[1642284458502,0.824,43269.0,43266.0,0.78587216]
[1642284458702,0.824,43269.0,43265.0,0.78587216]
[1642284458902,0.17973407,43268.0,43265.0,0.78587216]
[1642284459103,0.17973407,43268.0,43263.0,0.78587216]
[1642284459702,0.18062327,43268.0,43263.0,1.07776252]
[1642284459902,0.18062327,43268.0,43263.0,0.29189036]
[1642284460475,0.18062327,43268.0,43261.0,1.08067216]
[1642284460674,0.17736105,43268.0,43261.0,1.08067216]
[1642284460873,0.0008892,43268.0,43261.0,1.08067216]
[1642284461275,0.29111779,43266.0,43262.0,0.78587216]
[1642284461676,0.29111779,43266.0,43261.0,1.11316592]
[1642284462274,0.29111779,43266.0,43261.0,1.06856592]
[1642284463077,0.29111779,43266.0,43262.0,0.78587216]
[1642284463478,0.05,43267.0,43262.0,0.78587216]
[1642284463878,0.05,43267.0,43261.0,1.12633127]
[1642284464503,0.05,43267.0,43262.0,0.78587216]
[1642284464902,0.05,43267.0,43261.0,1.12633127]
[1642284466702,0.05,43267.0,43262.0,0.0467648]
[1642284466901,0.05,43267.0,43263.0,0.047692]
[1642284467104,0.05,43267.0,43264.0,0.03894378]
[1642284467301,0.05,43267.0,43265.0,0.04082556]
[1642284467701,0.05,43267.0,43265.0,0.0985857]
[1642284468953,0.05,43267.0,43265.0,0.04082556]
[1642284469155,0.05,43267.0,43264.0,0.78587216]
[1642284469354,0.30590768,43267.0,43264.0,0.78587216]
[1642284469658,0.30536348,43267.0,43264.0,0.78587216]
[1642284469954,0.30536348,43267.0,43262.0,0.78587216]
[1642284470155,0.0494558,43267.0,43262.0,0.78587216]
[1642284470855,0.0494558,43267.0,43261.0,1.06856592]
[1642284471255,0.30939345,43267.0,43261.0,1.06856592]
[1642284471456,0.30939345,43267.0,43261.0,0.28269376]
[1642284471706,0.30939345,43267.0,43262.0,0.0350275]
[1642284471907,0.30939345,43267.0,43263.0,0.03689933]
[1642284472106,0.0494558,43267.0,43264.0,0.03652538]
[1642284472312,0.0494558,43267.0,43261.0,0.27741842]
[1642284472507,0.0494558,43267.0,43262.0,0.78587216]
[1642284474009,0.0494558,43267.0,43261.0,1.06329058]
[1642284474610,0.0494558,43267.0,43262.0,0.03442905]
[1642284474812,0.0494558,43267.0,43262.0,0.82030121]
[1642284475461,0.0494558,43267.0,43263.0,0.78587216]
[1642284476261,0.0494558,43267.0,43263.0,0.9897098]
[1642284476659,0.0494558,43267.0,43263.0,0.78587216]
[1642284477363,0.0494558,43267.0,43263.0,0.74117216]
[1642284477759,0.0494558,43267.0,43264.0,0.73617216]
[1642284478559,0.0494558,43267.0,43262.0,0.03442905]
[1642284478961,0.04920364,43267.0,43262.0,0.03442905]
[1642284479605,0.04920364,43267.0,43261.0,0.27741842]
[1642284481407,0.04420364,43267.0,43261.0,0.27741842]
[1642284482305,0.04420364,43267.0,43261.0,0.23281842]
[1642284482509,0.04420364,43267.0,43260.0,0.05991846]
[1642284482706,0.04420364,43267.0,43260.0,0.00093195]
[1642284482957,0.04420364,43267.0,43261.0,8.595e-05]
[1642284483655,0.04420364,43267.0,43261.0,0.3288274]
[1642284484060,0.04420364,43267.0,43262.0,6.876e-05]
[1642284486359,0.04420364,43267.0,43262.0,0.05783186]
[1642284487332,0.04420364,43267.0,43262.0,0.01303186]
[1642284488134,0.04420364,43267.0,43262.0,0.80019328]
[1642284488935,0.04420364,43267.0,43263.0,0.04924911]
[1642284489136,0.03420364,43267.0,43263.0,0.04924911]
[1642284489336,0.18175047,43268.0,43263.0,0.04924911]
[1642284489536,0.18086124,43268.0,43263.0,0.04924911]
[1642284489836,0.18237645,43268.0,43263.0,0.04924911]
[1642284490654,0.1,43280.0,43275.0,23.56768173]
[1642284490856,0.00126738,43278.0,43275.0,23.56768173]
[1642284491255,0.18716031,43279.0,43275.0,23.56768173]
[1642284491653,0.22568074,43283.0,43275.0,23.56768173]
[1642284491853,0.21940466,43283.0,43275.0,23.56768173]
[1642284492256,0.30531137,43282.0,43276.0,0.23617211]
[1642284492455,0.40531137,43282.0,43276.0,0.23617211]
[1642284492663,0.034,43276.0,43275.0,23.56768173]
[1642284493057,0.0341719,43276.0,43275.0,23.56768173]
[1642284494820,0.0341719,43276.0,43275.0,23.56748493]
[1642284497420,0.0341719,43276.0,43275.0,23.52278493]
[1642284497623,2.1841719,43276.0,43275.0,23.36243195]
[1642284497860,2.52224554,43276.0,43275.0,23.3545402]
[1642284498165,2.62224554,43276.0,43275.0,23.3545402]
[1642284499562,2.64138554,43276.0,43275.0,23.3545402]
[1642284499761,2.64788541,43276.0,43275.0,23.3545402]
[1642284499961,3.14788541,43276.0,43275.0,23.3545402]
[1642284501815,3.14138554,43276.0,43275.0,23.3545402]
[1642284502013,0.9901119,43276.0,43275.0,23.3545402]
[1642284502412,2.9401119,43276.0,43275.0,23.3099402]
[1642284502813,0.4901119,43276.0,43275.0,23.3099402]
[1642284503314,0.6761471,43276.0,43275.0,23.3099402]
[1642284503713,1.5761471,43276.0,43275.0,23.3099402]
[1642284503912,1.3901119,43276.0,43275.0,23.3099402]
[1642284504716,1.6201119,43276.0,43275.0,23.3099402]
[1642284505564,0.7201119,43276.0,43275.0,23.3099402]
[1642284505765,0.90095895,43276.0,43275.0,23.3099402]
[1642284505970,0.7201119,43276.0,43275.0,23.3099402]
[1642284507367,1.8701119,43276.0,43275.0,23.2651402]
[1642284507567,0.7201119,43276.0,43275.0,23.2651402]
[1642284511304,0.3833119,43276.0,43275.0,23.2651402]
[1642284511805,0.2833119,43276.0,43275.0,23.2651402]
[1642284512105,0.3350119,43276.0,43275.0,23.2651402]
[1642284512309,0.3350119,43276.0,43275.0,23.26635559]
[1642284512511,0.3350119,43276.0,43275.0,23.22287017]
[1642284512512,0.2833119,43276.0,43275.0,23.22287017]
[1642284513562,0.2641719,43276.0,43275.0,23.22287017]
[1642284514362,0.26361684,43276.0,43275.0,23.22287017]
[1642284517409,0.26361684,43276.0,43275.0,23.17797017]
[1642284522566,0.26361684,43276.0,43275.0,23.72197854]
[1642284527412,0.26361684,43276.0,43275.0,23.67737854]
[1642284529868,0.26361684,43276.0,43275.0,23.08837017]
[1642284532610,0.26361684,43276.0,43275.0,23.04347017]
[1642284534410,0.26320331,43276.0,43275.0,23.04347017]
[1642284537567,0.26320331,43276.0,43275.0,22.99877017]
[1642284541518,0.26162694,43276.0,43275.0,22.99877017]
[1642284542618,0.26162694,43276.0,43275.0,22.95377017]
[1642284547621,0.26162694,43276.0,43275.0,22.90917017]
[1642284552676,0.26162694,43276.0,43275.0,22.86437017]
[1642284553075,0.26162694,43276.0,43275.0,22.86395664]
[1642284554312,0.26162694,43276.0,43275.0,23.45296501]
[1642284555813,0.26162694,43276.0,43275.0,22.86395664]
[1642284556713,0.26162694,43276.0,43275.0,22.85895664]
[1642284557714,0.26162694,43276.0,43275.0,22.81425664]
[1642284558361,0.26162694,43276.0,43275.0,23.98959904]
[1642284562626,0.26162694,43276.0,43275.0,23.94449904]
[1642284563330,0.00093397,43278.0,43276.0,2.15]
[1642284563528,0.00093397,43278.0,43277.0,2.40018208]
[1642284563728,0.00093397,43278.0,43277.0,2.2017]
[1642284563930,0.59178913,43292.0,43277.0,2.2017]
[1642284564129,0.00093395,43280.0,43277.0,2.68986597]
[1642284564328,0.00093395,43280.0,43278.0,0.23390188]
[1642284564528,0.00093395,43280.0,43279.0,2.2017]
[1642284564728,0.00093395,43280.0,43279.0,2.60873232]
[1642284564928,0.00100271,43280.0,43279.0,2.60873232]
[1642284565131,0.23006876,43280.0,43279.0,2.60873232]
[1642284566164,6.876e-05,43280.0,43279.0,2.60873232]
[1642284566364,6.876e-05,43280.0,43279.0,3.78541207]
[1642284567773,2.23719692,43293.0,43287.0,0.23888359]
[1642284567970,0.375746,43289.0,43287.0,0.22888359]
[1642284568170,0.00020629,43292.0,43287.0,0.22888359]
[1642284568372,0.00020629,43292.0,43286.0,0.0517]
[1642284568570,0.0001891,43291.0,43286.0,0.0517]
[1642284568970,0.00017191,43290.0,43286.0,0.0517]
[1642284569425,0.00015472,43289.0,43286.0,0.0517]
[1642284569725,0.00013753,43288.0,43281.0,0.82755223]
[1642284570129,0.00012034,43287.0,43281.0,0.82755223]
[1642284570326,0.00012034,43287.0,43282.0,0.05773465]
[1642284570625,0.00010315,43286.0,43283.0,0.28830211]
[1642284571030,8.596e-05,43285.0,43283.0,0.28830211]
[1642284571426,6.876e-05,43284.0,43283.0,0.28830211]
[1642284572027,6.876e-05,43284.0,43283.0,1.83830211]
[1642284572730,6.876e-05,43284.0,43283.0,1.84655796]
[1642284572962,6.876e-05,43284.0,43283.0,2.82230396]
[1642284573365,6.876e-05,43284.0,43283.0,2.86656367]
[1642284575563,6.876e-05,43284.0,43283.0,2.26656367]
[1642284575967,6.876e-05,43284.0,43283.0,2.86656367]
[1642284576171,6.876e-05,43284.0,43283.0,3.45585669]
[1642284576611,6.876e-05,43284.0,43283.0,2.85585669]
[1642284577016,6.876e-05,43284.0,43283.0,2.26656367]
[1642284577715,6.876e-05,43284.0,43283.0,2.21686367]
[1642284577915,6.876e-05,43284.0,43283.0,2.81686367]
[1642284578315,0.28962381,43300.0,43284.0,2.20993124]
[1642284578514,0.0009339,43286.0,43285.0,0.2398724]
[1642284578720,0.0009339,43286.0,43285.0,0.75007489]
[1642284578914,0.0009339,43286.0,43285.0,2.90007489]
[1642284579314,0.0009339,43286.0,43285.0,2.71190249]
[1642284579615,0.28064754,43296.0,43291.0,0.24861405]
[1642284579815,1.90683259,43298.0,43291.0,0.24861405]
[1642284580014,0.0001891,43295.0,43291.0,0.24861405]
[1642284580216,0.00022348,43297.0,43291.0,0.24861405]
[1642284580468,0.00017191,43294.0,43291.0,0.24861405]
[1642284580767,0.00015472,43293.0,43291.0,0.24861405]
[1642284580967,0.00069104,43296.0,43292.0,1.65]
[1642284581169,0.00069104,43296.0,43288.0,0.0517]
[1642284581572,0.00069104,43296.0,43289.0,6.876e-05]
[1642284581971,6.876e-05,43297.0,43289.0,6.876e-05]
[1642284582469,6.876e-05,43297.0,43291.0,0.29281015]
[1642284582874,6.876e-05,43297.0,43291.0,0.20281015]
[1642284587317,0.24813699,43299.0,43292.0,1.65]
[1642284587519,0.24813699,43299.0,43292.0,8.595e-05]
[1642284587867,0.24813699,43299.0,43292.0,0.38043587]
[1642284587868,2.45374927,43298.0,43292.0,0.38043587]
[1642284588067,0.375746,43297.0,43292.0,0.38043587]
[1642284588269,0.00010314,43298.0,43292.0,0.38043587]
[1642284588466,6.876e-05,43296.0,43292.0,0.38043587]
[1642284588765,0.0001719,43302.0,43292.0,0.38043587]
[1642284589169,0.00015471,43301.0,43292.0,0.38043587]
[1642284589366,0.34333738,43300.0,43292.0,0.38043587]
[1642284589568,0.4434749,43300.0,43291.0,0.2025961]
[1642284589768,0.00012033,43299.0,43291.0,0.2025961]
[1642284591370,0.00012033,43299.0,43298.0,0.18277103]
[1642284591624,0.37586633,43299.0,43298.0,0.18277103]
[1642284593019,0.37586633,43299.0,43298.0,0.13797103]
[1642284596566,0.47586633,43299.0,43298.0,0.13797103]
[1642284597970,0.47586633,43299.0,43298.0,0.09327103]
[1642284598369,0.37586633,43299.0,43298.0,0.09327103]
[1642284602967,0.37586633,43299.0,43298.0,0.04857103]
[1642284605060,0.00012033,43299.0,43298.0,0.04857103]
[1642284605663,0.00012033,43299.0,43298.0,0.37388253]
[1642284608021,0.00012033,43299.0,43298.0,0.32908253]
[1642284613074,0.00012033,43299.0,43298.0,0.49233314]
[1642284613471,0.00012033,43299.0,43298.0,1.09233314]
[1642284614112,0.00012033,43299.0,43298.0,1.14403314]
[1642284614513,0.00012033,43299.0,43298.0,1.84403314]
[1642284617622,0.00012033,43299.0,43298.0,2.39403314]
[1642284617870,0.10127796,43312.0,43299.0,1.85]
[1642284618072,0.0015297,43314.0,43300.0,0.24621663]
[1642284618073,0.00088778,43301.0,43300.0,0.24621663]